[Event "Championnat du monde jeunes U10"]
[Date "2024.11.20"]
[White "Montaigu Dupont, Arthur"]
[Black "Ilko-Toth, Andras"]
[WhiteElo "1767"]
[BlackElo "2115"]
[Round "6.21"]
[Result "0-1"]
[TimeControl "5400+30"]

1. e4 {[%clk 1:30:59]} 1... c6 {[%clk 1:30:55]} 2. Nf3 {[%clk 1:31:25]} 2... d5
{[%clk 1:31:20]} 3. Nc3 {[%clk 1:31:54]} 3... dxe4 {[%clk 1:31:44]} 4. Nxe4
{[%clk 1:32:20]} 4... Nf6 {[%clk 1:32:07]} 5. Qe2 {[%clk 1:32:46]} 5... Nxe4
{[%clk 1:32:34]} 6. Qxe4 {[%clk 1:33:12]} 6... Be6 {[%clk 1:32:59]} 7. b3 {[%clk
1:33:32]} 7... Nd7 {[%clk 1:32:29]} 8. Bb2 {[%clk 1:32:26]} 8... Nf6 {[%clk
1:31:54]} 9. Qe2 {[%clk 1:32:23]} 9... Bf5 {[%clk 1:29:31]} 10. d3 {[%clk
1:32:41]} 10... e6 {[%clk 1:28:01]} 11. g3 {[%clk 1:25:38]} 11... Bb4+ {[%clk
1:13:24]} 12. Nd2 {[%clk 1:20:53]} 12... Qd5 {[%clk 1:06:01]} 13. f3 {[%clk
1:20:52]} 13... Qc5 {[%clk 1:05:32]} 14. O-O-O {[%clk 1:17:06]} 14... Nd5 {[%clk
0:55:51]} 15. Nc4 {[%clk 0:56:15]} 15... b5 {[%clk 0:44:12]} 16. d4 {[%clk
0:39:25]} 16... Qe7 {[%clk 0:43:38]} 17. Nd2 {[%clk 0:37:51]} 17... Nc3 {[%clk
0:33:51]} 18. Bxc3 {[%clk 0:38:08]} 18... Bxc3 {[%clk 0:34:19]} 19. Nb1 {[%clk
0:38:22]} 19... Bb4 {[%clk 0:34:39]} 20. h4 h5 {[%clk 0:29:13]} 21. g4 {[%clk
0:31:12]} 21... Bg6 {[%clk 0:28:40]} 22. Kb2 {[%clk 0:30:30]} 22... a5 {[%clk
0:26:17]} 23. a3 {[%clk 0:29:42]} 23... Bd6 {[%clk 0:26:38]} 24. c4 {[%clk
0:26:53]} 24... O-O {[%clk 0:22:07]} 25. c5 {[%clk 0:25:50]} 25... Bf4 {[%clk
0:22:20]} 26. gxh5 {[%clk 0:25:49]} 26... Bxh5 {[%clk 0:19:07]} 27. Bh3 {[%clk
0:24:02]} 27... Qf6 {[%clk 0:16:22]} 28. Bg4 {[%clk 0:22:47]} 28... Bg6 {[%clk
0:16:35]} 29. h5 {[%clk 0:18:30]} 29... Bh7 {[%clk 0:14:28]} 30. Rhe1 {[%clk
0:15:22]} 30... Rad8 {[%clk 0:14:04]} 31. Qf2 {[%clk 0:15:06]} 31... Rd7 {[%clk
0:13:41]} 32. Nc3 {[%clk 0:14:39]} 32... Rfd8 {[%clk 0:13:17]} 33. Ne2 {[%clk
0:14:48]} 33... Bh6 {[%clk 0:13:14]} 34. f4 {[%clk 0:14:39]} 34... Be4 {[%clk
0:11:54]} 35. Qe3 {[%clk 0:14:54]} 35... Bd5 {[%clk 0:11:58]} 36. Bf3 {[%clk
0:13:48]} 36... a4 {[%clk 0:11:20]} 37. b4 {[%clk 0:14:11]} 37... Qf5 {[%clk
0:09:22]} 38. Rh1 {[%clk 0:14:01]} 38... Kh8 {[%clk 0:07:53]} 39. Bxd5 {[%clk
0:12:11]} 39... Rxd5 {[%clk 0:07:52]} 40. Rdf1 {[%clk 0:12:24]} 40... Qf6 {[%clk
0:07:50]} 41. Kc3 {[%clk 0:12:42]} 41... Kg8 {[%clk 0:06:10]} 42. Qe4 {[%clk
0:11:49]} 42... Qf5 {[%clk 0:05:06]} 43. Qxf5 {[%clk 0:11:26]} 43... Rxf5 {[%clk
0:05:20]} 44. Rf3 {[%clk 0:11:36]} 44... Rdd5 {[%clk 0:05:05]} 45. Rfh3 {[%clk
0:11:53]} 45... Bxf4 {[%clk 0:05:16]} 46. Kd3 {[%clk 0:10:49]} 46... Bh6 {[%clk
0:04:59]} 47. Nc3 {[%clk 0:10:46]} 47... Rd8 {[%clk 0:05:20]} 48. Ne4 {[%clk
0:11:09]} 48... Rfd5 {[%clk 0:05:27]} 49. Kc3 {[%clk 0:10:40]} 49... Rxd4 {[%clk
0:04:58]} 50. Nd6 {[%clk 0:11:04]} 50... Rd5 {[%clk 0:04:32]} 51. Rf3 {[%clk
0:11:21]} 51... f6 {[%clk 0:04:50]} 52. Rg1 {[%clk 0:11:34]} 52... Kf8 {[%clk
0:04:11]} 53. Rd3 {[%clk 0:11:37]} 53... Rxd3+ {[%clk 0:04:27]} 54. Kxd3 {[%clk
0:12:02]} 54... Bf4 {[%clk 0:04:51]} 55. Kd4 0-1

[Variant "Standard"]
[Site "Europe Echecs"]

[Event "Championnat du monde jeunes U10"]
[Date "2024.11.20"]
[White "Nguyen Minh"]
[Black "Shangin, Lev"]
[WhiteElo "1760"]
[BlackElo "2056"]
[Round "6.22"]
[Result "0-1"]
[TimeControl "5400+30"]

1. d4 {[%clk 1:30:54]} 1... Nf6 {[%clk 1:30:33]} 2. c4 {[%clk 1:31:17]} 2... e6
{[%clk 1:30:54]} 3. Nf3 {[%clk 1:31:41]} 3... d5 {[%clk 1:31:07]} 4. Nc3 {[%clk
1:32:03]} 4... dxc4 {[%clk 1:30:57]} 5. e3 {[%clk 1:30:54]} 5... a6 {[%clk
1:31:04]} 6. a4 {[%clk 1:31:01]} 6... b6 {[%clk 1:30:49]} 7. Bxc4 {[%clk
1:31:24]} 7... Bb7 {[%clk 1:30:28]} 8. O-O {[%clk 1:29:25]} 8... c5 {[%clk
1:28:52]} 9. Qe2 {[%clk 1:26:12]} 9... Qc7 {[%clk 1:28:09]} 10. Rd1 {[%clk
1:19:28]} 10... Be7 {[%clk 1:24:05]} 11. b3 {[%clk 1:15:24]} 11... O-O {[%clk
1:22:13]} 12. Bb2 {[%clk 1:15:10]} 12... Nbd7 {[%clk 1:20:09]} 13. Rac1 {[%clk
1:11:26]} 13... Rfd8 {[%clk 1:15:09]} 14. Bd3 {[%clk 0:52:49]} 14... Qb8 {[%clk
1:10:16]} 15. h3 {[%clk 0:42:52]} 15... cxd4 {[%clk 1:07:45]} 16. Nxd4 {[%clk
0:38:24]} 16... Ne5 {[%clk 1:04:42]} 17. Bb1 {[%clk 0:33:22]} 17... Ng6 {[%clk
1:02:17]} 18. Nf3 {[%clk 0:23:52]} 18... Qa7 {[%clk 0:54:32]} 19. Ng5 {[%clk
0:11:59]} 19... Rac8 {[%clk 0:49:34]} 20. Nge4 {[%clk 0:05:15]} 20... Qa8 {[%clk
0:47:22]} 21. f3 {[%clk 0:04:46]} 21... Nd5 {[%clk 0:41:51]} 22. Nxd5 {[%clk
0:04:21]} 22... Bxd5 {[%clk 0:41:19]} 23. Nd2 {[%clk 0:04:39]} 23... Qb8 {[%clk
0:34:32]} 24. Be4 {[%clk 0:04:51]} 24... Bc5 {[%clk 0:33:24]} 25. Bxd5 {[%clk
0:05:08]} 25... Rxd5 {[%clk 0:32:30]} 26. Rc4 {[%clk 0:03:25]} 26... b5 {[%clk
0:32:13]} 27. axb5 {[%clk 0:03:35]} 27... axb5 {[%clk 0:32:18]} 28. Rc3 {[%clk
0:02:50]} 28... Nf4 {[%clk 0:28:21]} 29. Qf1 {[%clk 0:03:12]} 29... Rcd8 {[%clk
0:27:23]} 30. Bc1 {[%clk 0:01:57]} 30... Qb6 {[%clk 0:24:27]} 31. Re1 {[%clk
0:01:01]} 31... Bb4 {[%clk 0:23:50]} 32. Ne4 {[%clk 0:01:01]} 32... f5 {[%clk
0:23:45]} 33. Kh1 {[%clk 0:01:15]} 33... fxe4 {[%clk 0:24:09]} 34. Bb2 {[%clk
0:00:57]} 34... Bxc3 {[%clk 0:24:24]} 35. Bxc3 {[%clk 0:01:23]} 35... Nd3 {[%clk
0:24:30]} 36. Ra1 {[%clk 0:01:02]} 36... Qxe3 {[%clk 0:24:28]} 37. Ra2 {[%clk
0:00:59]} 37... exf3 {[%clk 0:24:49]} 38. gxf3 {[%clk 0:01:22]} 38... Qc1 {[%clk
0:24:27]} 39. Qxc1 {[%clk 0:01:38]} 39... Nxc1 0-1

[Variant "Standard"]
[Site "Europe Echecs"]

[Event "Championnat du monde jeunes U10"]
[Date "2024.11.20"]
[White "Ten Dam, Bram"]
[Black "Kadyr, Aldiyar"]
[WhiteElo "2012"]
[BlackElo "1759"]
[Round "6.23"]
[Result "1/2-1/2"]
[TimeControl "5400+30"]

1. e4 {[%clk 1:30:56]} 1... e6 {[%clk 1:30:00]} 2. d4 {[%clk 1:31:10]} 2... d5
{[%clk 1:29:53]} 3. e5 {[%clk 1:31:28]} 3... c5 {[%clk 1:29:30]} 4. c3 {[%clk
1:31:52]} 4... Nc6 {[%clk 1:29:29]} 5. Nf3 {[%clk 1:32:15]} 5... Qb6 {[%clk
1:28:48]} 6. Bd3 {[%clk 1:31:38]} 6... Bd7 {[%clk 1:28:08]} 7. O-O {[%clk
1:30:18]} 7... cxd4 {[%clk 1:21:18]} 8. Re1 {[%clk 1:30:11]} 8... dxc3 {[%clk
1:14:50]} 9. Nxc3 {[%clk 1:29:46]} 9... Bb4 {[%clk 1:05:21]} 10. Bd2 {[%clk
1:22:10]} 10... Nge7 {[%clk 0:59:59]} 11. h4 {[%clk 1:20:25]} 11... a6 {[%clk
0:54:34]} 12. Rb1 {[%clk 1:11:18]} 12... Qa7 {[%clk 0:49:13]} 13. a3 {[%clk
1:06:49]} 13... Bc5 {[%clk 0:49:24]} 14. Qe2 {[%clk 1:06:37]} 14... Nd4 {[%clk
0:44:45]} 15. Nxd4 {[%clk 1:06:19]} 15... Bxd4 {[%clk 0:45:07]} 16. h5 {[%clk
1:05:26]} 16... Nc6 {[%clk 0:40:53]} 17. Bf4 {[%clk 1:03:45]} 17... b5 {[%clk
0:36:02]} 18. Nd1 {[%clk 0:59:08]} 18... Qb8 {[%clk 0:26:19]} 19. Bh2 {[%clk
0:46:41]} 19... g6 {[%clk 0:21:40]} 20. b4 {[%clk 0:44:33]} 20... Qd8 {[%clk
0:11:37]} 21. Qg4 {[%clk 0:42:21]} 21... Qb8 {[%clk 0:08:47]} 22. Qg5 {[%clk
0:38:28]} 22... Qd8 {[%clk 0:08:43]} 23. Qf4 {[%clk 0:37:22]} 23... Qe7 {[%clk
0:07:09]} 24. Rc1 {[%clk 0:31:22]} 24... Bb6 {[%clk 0:06:50]} 25. Bg3 {[%clk
0:31:04]} 25... Rg8 {[%clk 0:05:40]} 26. Qg4 {[%clk 0:29:53]} 26... Qf8 {[%clk
0:03:08]} 27. Bf4 {[%clk 0:25:47]} 27... O-O-O {[%clk 0:02:27]} 28. Bg5 {[%clk
0:24:38]} 28... gxh5 {[%clk 0:02:31]} 29. Bxd8 {[%clk 0:22:24]} 29... hxg4
{[%clk 0:02:09]} 30. Bxb6 {[%clk 0:22:38]} 30... h5 {[%clk 0:02:36]} 31. Bc5
{[%clk 0:19:02]} 31... Qg7 {[%clk 0:03:04]} 32. a4 {[%clk 0:15:44]} 32... g3
{[%clk 0:02:45]} 33. f3 {[%clk 0:15:36]} 33... Kb7 {[%clk 0:02:55]} 34. axb5
{[%clk 0:15:01]} 34... axb5 {[%clk 0:03:23]} 35. Bxb5 {[%clk 0:13:28]} 35...
Nxe5 {[%clk 0:03:47]} 36. Bf1 {[%clk 0:09:21]} 36... Qg5 {[%clk 0:03:59]} 37.
Ra1 {[%clk 0:09:27]} 37... Ra8 {[%clk 0:02:46]} 38. Rxa8 {[%clk 0:09:44]} 38...
Kxa8 {[%clk 0:03:15]} 39. Ne3 {[%clk 0:08:14]} 39... Kb7 {[%clk 0:02:37]} 40.
Ra1 {[%clk 0:07:07]} 40... Nc4 {[%clk 0:01:40]} 41. Nxc4 {[%clk 0:06:35]} 41...
dxc4 {[%clk 0:02:04]} 42. Bxc4 {[%clk 0:06:48]} 42... Qh4 {[%clk 0:01:23]} 43.
Ba6+ {[%clk 0:06:49]} 43... Kc7 {[%clk 0:00:57]} 44. b5 Bxb5 45. Bxb5 Qg5 46.
Ra7+ Kb8 1/2-1/2

[Variant "Standard"]
[Site "Europe Echecs"]

[Event "Championnat du monde jeunes U10"]
[Date "2024.11.20"]
[White "Mikkelsen, Anders Askjaer"]
[Black "Chen, Chicheng Leon"]
[WhiteElo "1745"]
[BlackElo "1987"]
[Round "6.24"]
[Result "0-1"]
[TimeControl "5400+30"]

1. e4 {[%clk 1:30:55]} 1... c5 {[%clk 1:30:55]} 2. Nf3 {[%clk 1:31:19]} 2... d6
{[%clk 1:31:15]} 3. d4 {[%clk 1:31:33]} 3... cxd4 {[%clk 1:31:37]} 4. Nxd4
{[%clk 1:31:54]} 4... Nf6 {[%clk 1:31:55]} 5. Nc3 {[%clk 1:32:08]} 5... a6
{[%clk 1:32:18]} 6. f3 {[%clk 1:31:37]} 6... e6 {[%clk 1:32:28]} 7. Be3 {[%clk
1:29:19]} 7... h5 {[%clk 1:32:52]} 8. Qd2 {[%clk 1:26:35]} 8... Be7 {[%clk
1:33:09]} 9. Be2 {[%clk 1:25:45]} 9... b5 {[%clk 1:31:26]} 10. O-O-O {[%clk
1:21:07]} 10... Bb7 {[%clk 1:31:29]} 11. a3 {[%clk 1:19:11]} 11... Nbd7 12. h3
{[%clk 1:10:06]} 12... h4 {[%clk 1:31:18]} 13. Bf2 {[%clk 1:08:26]} 13... Nb6
{[%clk 1:21:44]} 14. g4 {[%clk 1:03:12]} 14... hxg3 {[%clk 1:17:29]} 15. Bxg3
{[%clk 1:02:29]} 15... Rc8 {[%clk 1:11:00]} 16. Nb3 {[%clk 0:55:34]} 16... d5
{[%clk 1:06:02]} 17. Na5 {[%clk 0:48:58]} 17... Ba8 {[%clk 1:02:07]} 18. e5
{[%clk 0:46:51]} 18... Nh5 {[%clk 1:02:19]} 19. Rdg1 {[%clk 0:44:44]} 19... d4
{[%clk 0:49:43]} 20. Na2 {[%clk 0:41:23]} 20... Bg5 {[%clk 0:44:50]} 21. f4
{[%clk 0:40:48]} 21... Bxh1 {[%clk 0:43:32]} 22. fxg5 {[%clk 0:39:37]} 22... Be4
{[%clk 0:39:41]} 23. Nb4 {[%clk 0:33:47]} 23... Na4 {[%clk 0:30:59]} 24. Bd3
{[%clk 0:31:42]} 24... Nc5 {[%clk 0:29:50]} 25. Bxe4 {[%clk 0:26:21]} 25... Nxe4
{[%clk 0:29:28]} 0-1

[Variant "Standard"]
[Site "Europe Echecs"]

[Event "Championnat du monde jeunes U10"]
[Date "2024.11.20"]
[White "Vardanyan, Armen Art."]
[Black "Chakhalov, Mikael"]
[WhiteElo "1735"]
[BlackElo "1962"]
[Round "6.25"]
[Result "0-1"]
[TimeControl "5400+30"]

1. d4 {[%clk 1:30:57]} 1... Nf6 {[%clk 1:30:48]} 2. c4 {[%clk 1:31:21]} 2... e6
{[%clk 1:31:11]} 3. Nf3 {[%clk 1:31:43]} 3... Bb4+ {[%clk 1:31:34]} 4. Bd2
{[%clk 1:31:43]} 4... c5 {[%clk 1:31:57]} 5. Bxb4 {[%clk 1:30:33]} 5... cxb4
{[%clk 1:32:25]} 6. e3 {[%clk 1:29:54]} 6... O-O {[%clk 1:32:38]} 7. Bd3 {[%clk
1:30:05]} 7... a5 {[%clk 1:32:47]} 8. O-O {[%clk 1:29:31]} 8... d6 {[%clk
1:33:01]} 9. Nbd2 {[%clk 1:28:41]} 9... Qe7 {[%clk 1:32:57]} 10. Re1 {[%clk
1:27:43]} 10... b6 {[%clk 1:32:03]} 11. Nf1 {[%clk 1:27:35]} 11... Bb7 {[%clk
1:31:08]} 12. Ng3 {[%clk 1:27:02]} 12... g6 {[%clk 1:30:13]} 13. e4 {[%clk
1:24:06]} 13... e5 {[%clk 1:30:15]} 14. Qc2 {[%clk 1:20:50]} 14... Nc6 {[%clk
1:28:23]} 15. d5 {[%clk 1:20:23]} 15... Nb8 {[%clk 1:28:39]} 16. Qd2 {[%clk
1:05:45]} 16... Na6 {[%clk 1:26:38]} 17. Nh4 {[%clk 0:57:01]} 17... Nh5 {[%clk
1:19:20]} 18. Nhf5 {[%clk 0:57:01]} 18... gxf5 {[%clk 1:19:35]} 19. Nxh5 {[%clk
0:56:24]} 19... f4 {[%clk 1:19:48]} 20. Be2 {[%clk 0:53:35]} 20... f5 {[%clk
1:14:58]} 21. exf5 {[%clk 0:45:31]} 21... Rxf5 {[%clk 1:14:29]} 22. Bg4 {[%clk
0:37:48]} 22... Rff8 {[%clk 1:08:53]} 23. f3 {[%clk 0:33:18]} 23... Bc8 {[%clk
1:05:53]} 24. h3 {[%clk 0:27:13]} 24... Bxg4 {[%clk 0:45:49]} 25. hxg4 {[%clk
0:27:16]} 25... Nc5 {[%clk 0:44:24]} 26. Rad1 {[%clk 0:24:47]} 26... Qf7 {[%clk
0:44:25]} 27. Qf2 {[%clk 0:24:09]} 27... Qg6 {[%clk 0:43:04]} 28. Re2 {[%clk
0:16:19]} 28... Ra7 {[%clk 0:34:08]} 29. Qh4 {[%clk 0:12:45]} 29... a4 {[%clk
0:30:37]} 30. Qe1 {[%clk 0:12:11]} 30... b3 {[%clk 0:29:59]} 31. a3 b5 {[%clk
0:23:54]} 32. cxb5 {[%clk 0:11:17]} 32... Rb7 {[%clk 0:24:08]} 33. g3 {[%clk
0:08:49]} 33... fxg3 {[%clk 0:19:36]} 34. Qxg3 {[%clk 0:09:05]} 34... Nd3 {[%clk
0:19:05]} 35. Qg2 {[%clk 0:08:25]} 35... Rxb5 {[%clk 0:17:20]} 36. Red2 {[%clk
0:06:11]} 36... Nf4 {[%clk 0:11:12]} 37. Nxf4 {[%clk 0:06:33]} 37... Rxf4 {[%clk
0:11:40]} 38. Qe2 {[%clk 0:06:13]} 38... Rc5 {[%clk 0:11:46]} 39. Qe3 {[%clk
0:05:51]} 39... Qg5 {[%clk 0:11:22]} 40. Rg2 {[%clk 0:05:21]} 40... e4 {[%clk
0:09:47]} 41. Rd4 {[%clk 0:04:58]} 41... Qf6 {[%clk 0:06:35]} 42. g5 {[%clk
0:03:27]} 42... Rc1+ {[%clk 0:03:57]} 43. Qxc1 {[%clk 0:01:53]} 43... Qxd4+
{[%clk 0:04:13]} 44. Rf2 {[%clk 0:01:26]} 44... e3 {[%clk 0:01:50]} 45. Re2
{[%clk 0:01:04]} 45... Rxf3 {[%clk 0:02:00]} 46. Qc8+ {[%clk 0:01:28]} 46... Kg7
{[%clk 0:02:23]} 47. Qc7+ {[%clk 0:01:13]} 47... Rf7 {[%clk 0:02:42]} 48. Qc1
{[%clk 0:01:18]} 48... Qg4+ {[%clk 0:01:56]} 49. Rg2 {[%clk 0:01:42]} 49... Qf4
{[%clk 0:01:47]} 50. Qc3+ {[%clk 0:01:52]} 50... Qe5 {[%clk 0:01:34]} 51. Qe1
{[%clk 0:01:34]} 51... Rf5 {[%clk 0:01:26]} 52. Qe2 {[%clk 0:00:41]} 52... Rxg5
{[%clk 0:01:33]} 53. Rxg5+ {[%clk 0:00:49]} 53... Qxg5+ {[%clk 0:02:01]} 54. Kh2
{[%clk 0:01:06]} 54... Qh4+ {[%clk 0:02:24]} 55. Kg2 {[%clk 0:00:32]} 55... Qf2+
{[%clk 0:02:52]} 56. Qxf2 {[%clk 0:00:32]} 56... exf2 {[%clk 0:03:20]} 57. Kxf2
{[%clk 0:00:32]} 57... Kf6 {[%clk 0:03:50]} 58. Kf3 {[%clk 0:00:31]} 58... Ke5
{[%clk 0:04:09]} 59. Kg4 {[%clk 0:00:56]} 0-1

[Variant "Standard"]
[Site "Europe Echecs"]

[Event "Championnat du monde jeunes U10"]
[Date "2024.11.20"]
[White "Kais, Kristofer"]
[Black "Larion, Iustin"]
[WhiteElo "1723"]
[BlackElo "1925"]
[Round "6.26"]
[Result "1/2-1/2"]
[TimeControl "5400+30"]

1. d4 {[%clk 1:30:57]} 1... d5 {[%clk 1:30:42]} 2. Bf4 {[%clk 1:31:16]} 2... Nf6
{[%clk 1:31:05]} 3. e3 {[%clk 1:31:38]} 3... c5 {[%clk 1:31:28]} 4. c3 {[%clk
1:31:27]} 4... Nc6 {[%clk 1:31:49]} 5. Nf3 {[%clk 1:30:27]} 5... Qb6 {[%clk
1:32:06]} 6. Qc2 {[%clk 1:23:55]} 6... g6 {[%clk 1:32:18]} 7. dxc5 {[%clk
1:21:19]} 7... Qxc5 {[%clk 1:30:28]} 8. Bd3 {[%clk 1:19:07]} 8... Bg7 {[%clk
1:29:07]} 9. Nbd2 {[%clk 1:14:59]} 9... O-O {[%clk 1:25:29]} 10. O-O {[%clk
1:07:26]} 10... Re8 {[%clk 1:15:35]} 11. e4 {[%clk 0:56:59]} 11... dxe4 {[%clk
1:07:49]} 12. Nxe4 {[%clk 0:54:35]} 12... Nxe4 {[%clk 1:07:33]} 13. Bxe4 {[%clk
0:51:32]} 13... e5 {[%clk 1:04:17]} 14. Be3 {[%clk 0:48:48]} 14... Qe7 {[%clk
1:04:11]} 15. Rfd1 {[%clk 0:44:19]} 15... Bg4 {[%clk 0:53:56]} 16. h3 {[%clk
0:37:30]} 16... Bxf3 {[%clk 0:44:30]} 17. Bxf3 {[%clk 0:37:10]} 17... e4 {[%clk
0:43:09]} 18. Be2 {[%clk 0:35:32]} 18... Be5 {[%clk 0:34:09]} 19. Rd2 {[%clk
0:26:34]} 19... Qe6 {[%clk 0:28:23]} 20. Qb3 {[%clk 0:22:18]} 20... Qxb3 {[%clk
0:21:49]} 21. axb3 {[%clk 0:22:35]} 21... Rad8 {[%clk 0:21:57]} 22. Rxd8 {[%clk
0:16:24]} 22... Rxd8 {[%clk 0:22:23]} 23. Bb5 {[%clk 0:15:35]} 23... f5 {[%clk
0:20:20]} 24. Bxc6 {[%clk 0:13:03]} 24... bxc6 {[%clk 0:20:34]} 25. g3 Bf6
{[%clk 0:18:23]} 26. h4 {[%clk 0:11:28]} 26... Be5 {[%clk 0:16:54]} 27. Rxa7
{[%clk 0:11:29]} 27... Rd1+ {[%clk 0:17:19]} 28. Kg2 {[%clk 0:11:15]} 28... Rb1
{[%clk 0:17:40]} 29. Ra5 {[%clk 0:08:26]} 29... Bd6 {[%clk 0:17:42]} 30. Ra6
{[%clk 0:07:53]} 30... Rxb2 {[%clk 0:18:01]} 31. Rxc6 {[%clk 0:08:09]} 31... Be5
{[%clk 0:18:12]} 32. Rc5 {[%clk 0:06:08]} 32... Bf6 {[%clk 0:18:18]} 33. b4
{[%clk 0:05:32]} 33... Rb3 {[%clk 0:18:35]} 34. Bd2 {[%clk 0:05:22]} 34... Rb2
{[%clk 0:18:56]} 35. Rc8+ {[%clk 0:04:22]} 35... Kf7 {[%clk 0:18:05]} 36. Rc7+
{[%clk 0:03:55]} 36... Ke6 {[%clk 0:17:24]} 37. Be3 {[%clk 0:02:45]} 37... Rb3
{[%clk 0:17:43]} 38. Bd2 {[%clk 0:01:54]} 1/2-1/2

[Variant "Standard"]
[Site "Europe Echecs"]

[Event "Championnat du monde jeunes U10"]
[Date "2024.11.20"]
[White "Ejsymont, Eryk"]
[Black "Larionov, Serghei"]
[WhiteElo "1910"]
[BlackElo "1720"]
[Round "6.27"]
[Result "1-0"]
[TimeControl "5400+30"]

1. e4 {[%clk 1:30:57]} 1... e5 {[%clk 1:30:53]} 2. Nf3 {[%clk 1:31:21]} 2... Nc6
{[%clk 1:31:17]} 3. Bc4 {[%clk 1:31:45]} 3... Bc5 {[%clk 1:30:17]} 4. d3 {[%clk
1:32:03]} 4... Nf6 {[%clk 1:25:11]} 5. O-O {[%clk 1:31:45]} 5... d6 {[%clk
1:23:02]} 6. c3 {[%clk 1:31:25]} 6... O-O {[%clk 1:21:48]} 7. a4 {[%clk
1:30:17]} 7... a6 {[%clk 1:20:28]} 8. h3 {[%clk 1:29:19]} 8... h6 {[%clk
1:20:29]} 9. b4 {[%clk 1:29:14]} 9... Bb6 {[%clk 1:20:09]} 10. Nbd2 {[%clk
1:28:03]} 10... d5 {[%clk 1:14:52]} 11. exd5 {[%clk 1:18:26]} 11... Nxd5 {[%clk
1:12:25]} 12. Ne4 {[%clk 1:15:03]} 12... Be6 {[%clk 1:00:55]} 13. Qb3 {[%clk
1:14:33]} 13... f6 {[%clk 0:56:01]} 14. Re1 {[%clk 1:09:26]} 14... Bf7 {[%clk
0:50:06]} 15. Nh4 {[%clk 1:04:37]} 15... Rb8 {[%clk 0:44:33]} 16. Nf5 {[%clk
0:54:15]} 16... Qd7 {[%clk 0:40:01]} 17. g4 {[%clk 0:43:32]} 17... Nce7 {[%clk
0:37:13]} 18. Bxd5 {[%clk 0:39:44]} 18... Nxd5 {[%clk 0:36:02]} 19. c4 {[%clk
0:39:33]} 19... Nf4 {[%clk 0:36:07]} 20. Bxf4 {[%clk 0:38:40]} 20... exf4 {[%clk
0:36:10]} 21. Nxh6+ {[%clk 0:37:39]} 21... Kh7 {[%clk 0:35:35]} 22. Nxf7 {[%clk
0:34:52]} 22... Qxf7 {[%clk 0:35:14]} 23. Qc3 {[%clk 0:33:27]} 23... Qg6 {[%clk
0:31:51]} 24. c5 {[%clk 0:32:16]} 24... f5 {[%clk 0:31:42]} 25. cxb6 {[%clk
0:31:02]} 25... fxg4 {[%clk 0:32:04]} 26. h4 {[%clk 0:21:28]} 26... cxb6 {[%clk
0:31:35]} 27. Qe5 {[%clk 0:19:15]} 27... g3 {[%clk 0:30:30]} 28. Qg5 {[%clk
0:18:08]} 28... gxf2+ {[%clk 0:29:48]} 29. Kxf2 {[%clk 0:18:25]} 29... Qc6
{[%clk 0:29:58]} 30. Qh5+ {[%clk 0:16:42]} 30... Kg8 {[%clk 0:30:21]} 31. Ng5
{[%clk 0:13:57]} 31... Qc2+ {[%clk 0:30:34]} 32. Qe2 {[%clk 0:14:15]} 32... Qc3
{[%clk 0:30:12]} 33. Qe4 {[%clk 0:13:40]} 1-0

[Variant "Standard"]
[Site "Europe Echecs"]

[Event "Championnat du monde jeunes U10"]
[Date "2024.11.20"]
[White "Melkonyan, Davit"]
[Black "Iliev, Stoyan"]
[WhiteElo "1842"]
[BlackElo "1671"]
[Round "6.28"]
[Result "1-0"]
[TimeControl "5400+30"]

1. e4 {[%clk 1:30:52]} 1... c5 {[%clk 1:30:51]} 2. Nf3 {[%clk 1:31:04]} 2... Nc6
{[%clk 1:31:08]} 3. Bb5 {[%clk 1:31:07]} 3... e6 {[%clk 1:31:24]} 4. Bxc6 {[%clk
1:31:04]} 4... bxc6 {[%clk 1:31:34]} 5. d3 {[%clk 1:24:18]} 5... d5 {[%clk
1:28:25]} 6. O-O {[%clk 1:18:07]} 6... Nf6 {[%clk 1:27:12]} 7. Nc3 {[%clk
1:10:03]} 7... Be7 {[%clk 1:22:33]} 8. Bf4 {[%clk 0:57:31]} 8... Ba6 {[%clk
1:18:40]} 9. Re1 {[%clk 0:55:01]} 9... O-O {[%clk 1:15:51]} 10. Ne5 {[%clk
0:44:50]} 10... Rc8 {[%clk 1:12:32]} 11. Qf3 {[%clk 0:37:57]} 11... Kh8 {[%clk
1:10:53]} 12. Rad1 {[%clk 0:32:26]} 12... Nd7 {[%clk 1:09:43]} 13. Nxd7 {[%clk
0:29:01]} 13... Qxd7 {[%clk 1:10:05]} 14. Qh3 {[%clk 0:26:04]} 14... Bd6 {[%clk
1:07:03]} 15. e5 {[%clk 0:24:46]} 15... Be7 {[%clk 1:05:37]} 16. Qh5 {[%clk
0:22:09]} 16... d4 {[%clk 1:04:21]} 17. Ne4 {[%clk 0:20:17]} 17... f5 {[%clk
0:58:43]} 18. exf6 {[%clk 0:18:27]} 18... gxf6 {[%clk 0:55:54]} 19. Nxc5 {[%clk
0:17:23]} 19... Bxc5 {[%clk 0:55:52]} 20. Qxc5 {[%clk 0:17:47]} 20... e5 {[%clk
0:55:36]} 21. Bg3 {[%clk 0:17:13]} 21... Rg8 {[%clk 0:52:55]} 22. Re4 {[%clk
0:14:03]} 22... Rb8 {[%clk 0:52:03]} 23. Qa3 {[%clk 0:12:06]} 23... Bb7 {[%clk
0:51:31]} 24. Rde1 {[%clk 0:10:08]} 24... Rbe8 {[%clk 0:49:56]} 25. Qc5 {[%clk
0:08:45]} 25... Ba6 {[%clk 0:46:36]} 26. b3 {[%clk 0:07:06]} 26... Rb8 {[%clk
0:45:29]} 27. Rxe5 {[%clk 0:06:32]} 27... Rxg3 {[%clk 0:38:27]} 28. hxg3 {[%clk
0:06:33]} 1-0

[Variant "Standard"]
[Site "Europe Echecs"]